bitfinex/quotes_SOLUSD_20251120
["timestamp","ask_amount","ask_price","bid_price","bid_amount"]
[1763604727576,10.98071381,143.04,142.87,1.99999999]
[1763604727805,10.98071381,142.89,142.78,5.36540645]
[1763604728111,2.06,143.03,142.77,1.99999999]
[1763604728112,0.69,143.03,142.77,1.99999999]
[1763604728283,10.98071381,142.86,142.81,1.99999999]
[1763604728481,2.06,142.85,142.81,1.99999999]
[1763604728684,2.06,142.84,142.78,1.99999999]
[1763604728900,10.98071381,142.83,142.78,1.99999999]
[1763604729204,0.69,143.01,142.78,1.99999999]
[1763604729205,2.04,142.82,142.78,1.99999999]
[1763604729578,2.04,142.82,142.79,1.99999999]
[1763604729778,2.04,142.82,142.78,1.99999999]
[1763604730006,2.04,142.82,142.77,1.99999999]
[1763604730211,13.02071381,142.82,142.77,1.99999999]
[1763604730384,2.04,142.82,142.77,1.99999999]
[1763604730584,10.98071381,142.81,142.72,12.9807138]
[1763604730792,13.02071381,142.81,142.72,12.9807138]
[1763604730993,2.04,142.8,142.79,1.99999999]
[1763604732083,10.98071381,142.85,142.8,1.99999999]
[1763604732279,2.04,142.84,142.8,1.99999999]
[1763604732493,10.98071381,142.85,142.8,1.99999999]
[1763604732699,2.04,142.83,142.81,1.99999999]
[1763604732903,2.04,142.82,142.8,1.99999999]
[1763604733109,2.04,142.82,142.81,1.99999999]
[1763604733825,24.50294035,142.84,142.81,1.99999999]
[1763604734030,7.0008401,142.84,142.83,1.99999999]
[1763604734402,9.0408401,142.84,142.83,1.99999999]
[1763604734699,7.00020281,142.86,142.83,1.99999999]
[1763604734891,7.0008401,142.84,142.83,1.99999999]
[1763604735506,7.0008401,142.84,142.83,11.78882768]
[1763604735840,0.69,143.25,143.14,50.0]
[1763604736129,2.04,143.24,143.15,9.78882769]
[1763604736304,2.04,143.24,143.13,1.99999999]
[1763604736623,10.98071381,143.2,143.14,9.78882769]
[1763604736830,2.04,143.19,143.16,50.0]
[1763604736995,2.04,143.18,143.17,9.78882769]
[1763604737180,24.43451549,143.24,143.18,1.99999999]
[1763604737388,17.44907323,143.28,143.24,9.78882769]
[1763604737625,6.97993533,143.27,143.25,22.76954149]
[1763604737804,2.14,143.26,143.25,72.76954149]
[1763604738005,0.1,143.26,143.25,70.7695415]
[1763604738208,34.81669069,143.55,143.28,9.78882769]
[1763604738404,36.81616023,143.36,143.28,20.7695415]
[1763604738721,2.04,143.35,143.32,10.98071381]
[1763604738924,2.04,143.35,143.27,50.0]
[1763604738925,2.04,143.34,143.31,50.0]
[1763604739093,17.43557241,143.39,143.34,10.98071381]
[1763604739431,2.04,143.38,143.34,50.0]
[1763604739629,2.04,143.37,143.34,50.0]
[1763604739795,2.04,143.37,143.36,50.0]
[1763604740310,23.79141634,143.45,143.38,50.0]
[1763604740519,2.04,143.44,143.38,50.0]
[1763604740715,7.66048044,143.47,143.39,59.78882769]
[1763604740900,6.97155605,143.44,143.39,70.7695415]
[1763604741217,6.97155605,143.44,143.39,59.78882769]
[1763604741428,2.04,143.43,143.39,59.78882769]
[1763604741605,16.82,143.47,143.39,59.78882769]
[1763604741805,10.98071381,143.4,143.36,50.0]
[1763604742018,10.98071381,143.38,143.37,9.78882769]
[1763604742414,10.98071381,143.38,143.32,50.0]
[1763604742730,10.98071381,143.33,143.32,50.0]
[1763604742905,10.98071381,143.34,143.33,9.78882769]
[1763604743108,17.95731155,143.34,143.28,50.0]
[1763604743321,10.98071381,143.29,143.26,50.0]
[1763604743500,6.97659774,143.34,143.26,50.0]
[1763604743501,13.02071381,143.28,143.26,50.0]
[1763604743711,2.04,143.27,143.26,50.0]
[1763604744415,2.02,143.27,143.26,50.0]
[1763604745029,2.02,143.27,143.26,59.78882769]
[1763604745226,6.97731472,143.33,143.3,9.78882769]
[1763604745399,6.97731472,143.33,143.23,1.99999999]
[1763604745400,10.98071381,143.31,143.28,0.329859]
[1763604745609,18.8,143.32,143.28,0.329859]
[1763604745821,16.78,143.32,143.28,0.329859]
[1763604746016,2.02,143.31,143.28,0.329859]
[1763604746227,10.98071381,143.29,143.28,0.329859]
[1763604746749,10.98071381,143.36,143.34,9.78882769]
[1763604746944,13.00071381,143.35,143.28,50.329859]
[1763604747146,2.02,143.34,143.32,50.0]
[1763604747453,6.97554068,143.36,143.33,9.78882769]
[1763604747649,2.02,143.35,143.33,9.78882769]
[1763604747819,2.02,143.35,143.3,50.0]
[1763604748018,17.4355613,143.39,143.34,9.78882769]
[1763604748217,16.78,143.44,143.34,9.78882769]
[1763604748218,2.02,143.38,143.34,9.78882769]
[1763604748443,2.02,143.37,143.36,9.78882769]
[1763604748746,10.98071381,143.37,143.36,9.78882769]
[1763604748926,2.02,143.37,143.36,9.78882769]
[1763604749552,13.00071381,143.37,143.36,9.78882769]
[1763604749844,17.95532752,143.38,143.36,9.78882769]
[1763604750046,2.02,143.37,143.36,9.78882769]
[1763604750834,13.68071381,143.37,143.31,9.78882769]
[1763604751139,6.97461371,143.38,143.28,60.98071381]
[1763604751140,10.98071381,143.32,143.28,50.0]
[1763604751351,16.76,143.34,143.28,50.0]
[1763604751559,10.98071381,143.32,143.28,50.0]
[1763604751734,13.00071381,143.33,143.29,50.0]
[1763604752045,10.98071381,143.3,143.25,60.98071381]
[1763604752360,13.00071381,143.32,143.28,50.0]
[1763604752519,10.98071381,143.32,143.29,9.78882769]
[1763604752719,10.98071381,143.35,143.31,59.78882769]
[1763604753044,2.02,143.34,143.33,59.78882769]
[1763604753250,18.12096,143.46,143.33,9.78882769]
[1763604753455,34.78523727,143.74,143.66,9.78882769]
[1763604753456,6.9570057,143.74,143.66,9.78882769]
[1763604753661,2.02,143.73,143.72,20.7695415]
[1763604753829,2.02,143.73,143.72,120.7695415]
[1763604754155,8.9662026,143.85,143.79,50.0]
[1763604754331,2.02,143.84,143.82,9.78882769]
[1763604754527,8.9662026,143.85,143.82,9.78882769]
[1763604754528,2.01423944,143.85,143.84,9.78882769]
[1763604754730,4.03423944,143.85,143.84,59.78882769]
[1763604754930,15.01495325,143.85,143.84,9.78882769]
[1763604755145,0.68,143.91,143.84,9.78882769]
[1763604755146,0.68,143.91,143.88,9.78882769]
[1763604755349,10.98071381,143.89,143.83,50.0]
[1763604755550,0.68,143.9,143.79,50.0]
[1763604755766,10.98071381,143.8,143.79,50.0]
[1763604756062,0.68,143.89,143.79,50.0]
[1763604756265,2.7,143.88,143.79,50.0]
[1763604756443,10.98071381,143.82,143.79,50.0]
[1763604756645,2.02,143.81,143.79,50.0]
[1763604757247,8.97398448,143.81,143.77,18.12096]
[1763604757568,10.98071381,143.8,143.78,9.78882769]
[1763604757738,2.02,143.79,143.78,9.78882769]
[1763604757938,13.00071381,143.79,143.76,9.78882769]
[1763604758250,10.98071381,143.8,143.79,9.78882769]
[1763604758452,13.00071381,143.8,143.79,9.78882769]
[1763604758659,13.00071381,143.8,143.77,9.78882769]
[1763604758847,10.98071381,143.78,143.72,50.0]
[1763604759160,0.68,143.79,143.61,33.55992914]
[1763604759161,10.98071381,143.74,143.71,50.0]
[1763604759337,2.02,143.73,143.71,50.0]
[1763604760238,2.02,143.73,143.69,68.12096]
[1763604760239,8.97758858,143.73,143.69,50.0]
[1763604760547,0.68,143.86,143.79,50.0]
[1763604760750,0.68,143.86,143.77,68.12096]
[1763604760751,2.0,143.85,143.77,68.12096]
[1763604760958,10.98071381,143.8,143.77,68.12096]
[1763604761144,2.0,143.79,143.77,68.12096]
[1763604761751,2.0,143.78,143.77,68.12096]
[1763604761950,6.95276339,143.83,143.8,50.0]
[1763604761951,10.98071381,143.82,143.8,50.0]
[1763604762169,2.0,143.81,143.8,50.0]
[1763604762370,6.95276339,143.83,143.67,1.99999999]
[1763604762371,24.33439448,143.83,143.67,1.99999999]
[1763604762578,24.33439448,143.83,143.78,50.0]
[1763604762579,10.98071381,143.8,143.78,50.0]
[1763604762759,2.0,143.79,143.78,50.0]
[1763604762963,2.0,143.79,143.78,100.0]
[1763604763260,2.0,143.79,143.78,50.0]
[1763604764655,12.98071381,143.79,143.75,50.0]
[1763604764847,13.14550691,143.78,143.75,50.0]
[1763604765467,12.46550691,143.77,143.75,50.0]
[1763604765673,2.0,143.76,143.75,50.0]
[1763604765873,14.46550691,143.76,143.69,50.0]
[1763604766175,12.46550691,143.72,143.69,100.0]
[1763604766383,12.46550691,143.7,143.67,50.0]
[1763604766552,2.0,143.69,143.67,50.0]
[1763604767775,2.0,143.69,143.68,9.78882769]
[1763604768152,2.0,143.69,143.68,59.78882769]
[1763604768354,16.72,143.71,143.7,59.78882769]
[1763604768552,18.7,143.71,143.7,109.78882769]
[1763604769083,19.4225258,143.74,143.71,9.78882769]
[1763604769262,18.7,143.73,143.71,9.78882769]
[1763604769470,31.16550691,143.73,143.71,9.78882769]
[1763604769673,38.12312376,143.73,143.71,9.78882769]
[1763604769882,12.46550691,143.72,143.69,9.78882769]
[1763604770087,12.46550691,143.72,143.63,0.27]
[1763604770088,0.71,143.72,143.6,50.0]
[1763604770384,12.46550691,143.65,143.62,50.0]
[1763604770553,0.71,143.71,143.62,50.0]
[1763604770754,12.46550691,143.66,143.62,50.0]
[1763604770973,14.44550691,143.65,143.62,50.0]
[1763604771152,1.98,143.64,143.6,50.0]
[1763604771353,1.98,143.64,143.61,18.12096]
[1763604771675,6.9613847,143.65,143.61,50.0]
[1763604771862,18.7,143.64,143.62,100.0]
[1763604772061,16.72,143.64,143.61,12.46550691]
[1763604772249,1.98,143.63,143.61,12.46550691]
[1763604772649,1.98,143.63,143.62,12.46550691]
[1763604772873,1.98,143.63,143.61,12.46550691]
[1763604773086,16.72,143.64,143.61,12.46550691]
[1763604773292,16.72,143.64,143.6,62.46550691]
[1763604773581,1.98,143.63,143.6,80.58646691]
[1763604773967,1.98,143.63,143.6,68.12096]
[1763604774786,13.17550691,143.62,143.58,50.0]
[1763604775091,16.72,143.64,143.61,12.46550691]
[1763604775258,1.98,143.63,143.62,80.58646691]
[1763604775594,1.73953279,143.63,143.6,50.0]
[1763604775773,14.9150397,143.63,143.61,18.12096]
[1763604775981,16.72,143.64,143.61,30.58646691]
[1763604776290,16.72,143.64,143.62,62.46550691]
[1763604776291,1.98,143.63,143.62,62.46550691]
[1763604776498,1.5228422,143.63,143.62,62.46550691]
[1763604776681,1.28277521,143.63,143.62,62.46550691]
[1763604776871,1.28277521,143.63,143.62,50.0]
[1763604777363,1.28277521,143.63,143.62,62.46550691]
[1763604777874,1.28277521,143.63,143.62,18.12096]
[1763604778273,8.24510898,143.63,143.62,18.12096]
[1763604778576,25.0781682,143.63,143.59,12.46550691]
[1763604778775,1.96,143.62,143.59,62.46550691]
[1763604778979,1.96,143.62,143.59,12.46550691]
[1763604779174,16.72,143.62,143.58,62.46550691]
[1763604779484,1.96,143.61,143.58,80.58646691]
[1763604779682,1.96,143.61,143.59,12.46550691]
[1763604780083,16.72,143.62,143.61,50.0]
[1763604780290,16.72,143.62,143.61,62.46550691]
[1763604780291,18.68,143.62,143.61,62.46550691]
[1763604780884,18.44036776,143.62,143.61,62.46550691]
[1763604781086,18.2004976,143.62,143.61,62.46550691]
[1763604781277,16.00020322,143.62,143.61,62.46550691]
[1763604781797,17.96020322,143.62,143.61,62.46550691]
[1763604784517,17.96020322,143.62,143.61,50.0]
[1763604784710,17.96020322,143.62,143.61,62.46550691]
[1763604785232,17.96020322,143.62,143.61,63.16183724]
[1763604785528,16.00020322,143.62,143.61,63.43183724]
[1763604785691,18.10635892,143.71,143.66,100.0]
[1763604785692,23.67894375,143.7,143.66,100.0]
[1763604785896,1.96,143.69,143.68,12.46550691]
[1763604786423,1.96,143.69,143.66,112.46550691]
[1763604786792,8.91962584,143.69,143.67,9.78882769]
[1763604786994,0.71,143.72,143.67,22.2543346]
[1763604787312,1.96,143.71,143.67,72.2543346]
[1763604787496,8.918458,143.71,143.67,59.78882769]
[1763604787697,8.918458,143.71,143.67,9.78882769]
[1763604787698,9.628458,143.71,143.67,9.78882769]
[1763604787892,8.918458,143.71,143.67,9.78882769]
[1763604788101,0.71,143.7,143.67,9.78882769]
[1763604788907,6.95942654,143.69,143.67,9.78882769]
[1763604789188,1.94,143.68,143.67,9.78882769]
[1763604789395,2.65,143.68,143.65,9.78882769]
[1763604789608,0.71,143.67,143.65,9.78882769]
[1763604790328,0.71,143.67,143.62,12.46550691]
[1763604790626,1.94,143.66,143.62,12.46550691]
[1763604790939,6.96136442,143.65,143.63,9.78882769]
[1763604791110,7.67136442,143.65,143.63,9.78882769]
[1763604791305,6.74509948,143.65,143.64,9.78882769]
[1763604792619,24.36237,143.67,143.64,9.78882769]
[1763604792804,1.94,143.65,143.64,9.78882769]
[1763604793718,2.65,143.65,143.62,22.2543346]
[1763604793911,0.71,143.64,143.62,22.2543346]
[1763604794634,8.90161456,143.65,143.62,22.2543346]
[1763604794832,9.61161456,143.65,143.62,22.2543346]
[1763604795134,0.71,143.68,143.66,9.78882769]
[1763604795340,1.94,143.67,143.66,9.78882769]
[1763604795637,37.53526513,143.68,143.64,9.78882769]
[1763604795813,2.65,143.67,143.64,9.78882769]
[1763604796215,0.71,143.66,143.64,9.78882769]
[1763604796532,17.43,143.66,143.64,9.78882769]
[1763604796729,6.96136442,143.65,143.62,9.78882769]
[1763604796932,1.94,143.64,143.62,9.78882769]
[1763604797132,1.94,143.64,143.62,22.2543346]
[1763604797712,2.65,143.64,143.62,22.2543346]
[1763604797940,0.71,143.63,143.61,9.78882769]
[1763604798136,1.94,143.62,143.61,22.2543346]
[1763604798433,1.94,143.62,143.61,27.04070906]
[1763604798816,25.07477548,143.65,143.61,27.04070906]
[1763604799020,2.63,143.64,143.63,9.78882769]
[1763604799214,2.63,143.64,143.63,14.57520215]
[1763604800821,9.59184906,143.64,143.63,14.57520215]
[1763604801234,9.38278389,143.64,143.63,14.57520215]
[1763604801421,7.67184906,143.64,143.63,4.78637446]
[1763604801744,9.59184906,143.64,143.63,4.78637446]
[1763604802740,7.67184906,143.64,143.63,4.78637446]
[1763604802944,16.72,143.66,143.63,22.90733446]
[1763604803255,0.72,143.65,143.64,14.57520215]
[1763604803422,2.64,143.65,143.64,14.57520215]
[1763604804122,2.64,143.65,143.64,4.78637446]
[1763604804312,0.72,143.65,143.64,4.78637446]
[1763604804516,2.64,143.65,143.64,4.78637446]
[1763604804846,9.60136442,143.65,143.64,4.78637446]
[1763604805016,7.68136442,143.65,143.64,4.78637446]
[1763604805223,1.92,143.65,143.64,27.04070906]
[1763604805841,2.43105122,143.65,143.64,14.57520215]
[1763604806633,1.80416859,143.65,143.64,4.78637446]
[1763604806836,8.76553301,143.65,143.64,4.78637446]
[1763604807017,26.16894407,143.65,143.59,9.78882769]
[1763604807220,0.72,143.64,143.59,9.78882769]
[1763604807419,0.72,143.64,143.59,20.60578322]
[1763604807629,6.96136442,143.65,143.64,9.78882769]
[1763604808131,6.96136442,143.65,143.62,20.60578322]
[1763604808518,1.92,143.64,143.63,10.81695553]
[1763604808736,23.68136442,143.65,143.64,9.78882769]
[1763604808938,25.60136442,143.65,143.64,9.78882769]
[1763604809523,16.72,143.65,143.64,9.78882769]
[1763604809715,16.72,143.65,143.64,20.60578322]
[1763604809919,16.72,143.65,143.64,39.38674322]
[1763604810143,18.62,143.65,143.64,39.38674322]
[1763604810350,18.62,143.65,143.64,38.72674322]
[1763604810650,25.58136442,143.65,143.64,9.78882769]
[1763604810819,16.72,143.65,143.64,10.81695553]
[1763604811017,18.62,143.65,143.64,20.60578322]
[1763604811852,25.58136442,143.65,143.64,20.60578322]
[1763604812055,23.68136442,143.65,143.64,20.60578322]
[1763604812235,25.58136442,143.65,143.64,20.60578322]
[1763604812438,18.62,143.65,143.64,20.60578322]
[1763604812834,25.58136442,143.65,143.64,20.60578322]
[1763604813034,25.58136442,143.65,143.64,9.78882769]
[1763604813822,23.68136442,143.65,143.64,9.78882769]
[1763604814045,25.58136442,143.65,143.64,9.78882769]
[1763604815455,16.72,143.65,143.64,71.26578322]
[1763604815636,16.72,143.65,143.64,9.78882769]
[1763604815951,16.72,143.65,143.64,97.04477718]
[1763604816155,18.62,143.65,143.64,97.04477718]
[1763604817230,18.62,143.65,143.64,90.08292812]
[1763604817439,16.72,143.65,143.64,90.08292812]
[1763604817641,18.62,143.65,143.64,97.04477718]
[1763604817956,18.62,143.65,143.64,89.38674322]
[1763604818449,6.9600281,143.68,143.64,86.55961154]
[1763604818632,1.9,143.67,143.66,18.12096]
[1763604819436,8.86039535,143.67,143.66,18.12096]
[1763604819741,6.96039535,143.67,143.66,18.12096]
[1763604819952,18.62,143.67,143.66,18.12096]
[1763604820453,18.62,143.67,143.66,18.78096]
[1763604820859,1.69098172,143.67,143.66,18.78096]
[1763604821060,1.69098172,143.67,143.66,18.12096]
[1763604821264,8.65137707,143.67,143.66,18.12096]
[1763604821565,8.23345681,143.67,143.66,18.12096]
[1763604821745,1.27306146,143.67,143.66,18.12096]
[1763604821945,16.72,143.68,143.67,118.12096]
[1763604822151,18.6,143.68,143.67,118.78096]
[1763604822351,18.6,143.68,143.67,68.78096]
[1763604822749,18.6,143.68,143.67,118.78096]
[1763604823060,18.6,143.68,143.67,68.78096]
[1763604823251,18.6,143.68,143.67,118.12096]
[1763604823451,18.6,143.68,143.67,68.12096]
[1763604823658,17.77154207,143.79,143.74,100.0]
[1763604823845,10.81695553,143.75,143.68,50.66]
[1763604824041,10.81695553,143.73,143.71,18.12096]
[1763604824254,0.72,143.78,143.73,18.12096]
[1763604824454,12.69695553,143.77,143.74,18.12096]
[1763604824654,10.81695553,143.76,143.74,18.12096]
[1763604824855,0.72,143.78,143.74,18.12096]
[1763604825053,6.97910081,143.75,143.7,6.97910081]
[1763604825270,8.83706958,143.74,143.71,68.12096]
[1763604825442,8.83706958,143.74,143.71,75.10006081]
[1763604825740,8.83706958,143.74,143.71,75.76006081]
[1763604826263,8.83706958,143.74,143.71,125.76006081]
[1763604826478,17.39000838,143.77,143.73,125.10006081]
[1763604826640,24.56522676,143.8,143.75,106.97910081]
[1763604826959,26.22105291,143.79,143.75,50.0]
[1763604827146,33.92015372,143.79,143.75,50.0]
[1763604828548,32.04015372,143.79,143.75,50.0]
[1763604828869,1.88,143.78,143.75,50.0]
[1763604829965,8.8354508,143.78,143.75,50.0]
[1763604830469,8.83508073,143.78,143.75,50.0]
[1763604831085,26.22275634,143.78,143.74,0.41756788]
[1763604831251,6.97910081,143.76,143.74,0.41756788]
[1763604831572,1.88,143.75,143.74,0.41756788]
[1763604832092,8.83652173,143.75,143.72,18.12096]
[1763604832284,8.83652173,143.75,143.71,6.97910081]
[1763604832774,1.88,143.75,143.71,18.12096]
[1763604833069,1.88,143.75,143.72,6.97910081]
[1763604833369,8.83662085,143.75,143.72,6.97910081]
[1763604834280,6.95542509,143.78,143.74,6.97910081]
[1763604834465,1.86,143.77,143.73,75.10006081]
[1763604834860,1.86,143.77,143.74,9.78882769]
[1763604834861,0.72,143.76,143.74,9.78882769]
[1763604835851,8.83910081,143.77,143.74,9.78882769]
[1763604836056,6.95603784,143.76,143.74,9.78882769]
[1763604836473,7.67603784,143.76,143.74,9.78882769]
[1763604836959,6.95556266,143.77,143.74,16.7679285]
[1763604837278,1.86,143.76,143.74,9.78882769]
[1763604838767,8.81605222,143.76,143.74,9.78882769]
[1763604839087,8.81605222,143.76,143.75,30.67219408]
[1763604839487,1.86,143.76,143.75,30.67219408]
[1763604840482,6.95574729,143.77,143.76,9.78882769]
[1763604840666,15.7948481,143.77,143.76,9.78882769]
[1763604840863,16.5148481,143.77,143.74,9.78882769]
[1763604841279,1.86,143.76,143.74,10.48882769]
[1763604841664,1.86,143.76,143.74,9.78882769]
[1763604842278,6.95652173,143.75,143.74,9.78882769]
[1763604842479,7.67652173,143.75,143.73,18.12096]
[1763604842861,0.2,143.8,143.74,9.78882769]
[1763604843069,0.2,143.8,143.78,16.7679285]
[1763604843273,1.86,143.79,143.78,9.78882769]
[1763604843472,0.2,143.8,143.78,16.7679285]
[1763604843686,16.7,143.81,143.8,9.78882769]
[1763604843880,16.7,143.81,143.8,16.7679285]
[1763604844188,18.56,143.81,143.8,17.4679285]
[1763604844375,16.86,143.81,143.8,24.42203142]
[1763604844573,16.86,143.81,143.8,16.7679285]
[1763604844767,15.0,143.81,143.8,16.7679285]
[1763604844967,16.86,143.81,143.8,16.7679285]
[1763604845365,16.86,143.81,143.8,38.72203142]
[1763604845779,16.65134686,143.81,143.8,38.72203142]
[1763604845989,14.79134686,143.81,143.8,38.72203142]
[1763604846189,16.65134686,143.81,143.8,38.72203142]
[1763604846675,14.37406068,143.81,143.8,31.74293061]
[1763604846887,16.02542837,143.81,143.8,38.72203142]
[1763604847373,0.2,143.87,143.86,18.12096]
[1763604847569,0.2,143.87,143.85,6.97910081]
[1763604847570,2.06,143.87,143.85,6.97910081]
[1763604847792,0.92,143.87,143.84,56.97910081]
[1763604848100,0.92,143.87,143.86,56.97910081]
[1763604848101,0.2,143.87,143.86,56.97910081]
[1763604848299,2.06,143.87,143.86,56.97910081]
[1763604848971,2.06,143.87,143.86,50.0]
[1763604849170,2.06,143.87,143.86,63.93030336]
[1763604849596,2.06,143.87,143.86,56.97910081]
[1763604850193,2.06,143.87,143.86,50.0]
[1763604850395,2.06,143.87,143.86,56.97910081]
[1763604851077,2.06,143.87,143.86,75.10006081]
[1763604851478,1.85140955,143.87,143.86,75.10006081]
[1763604853506,1.85140955,143.87,143.86,18.12096]
[1763604853707,9.52212894,143.87,143.84,6.97910081]
[1763604853914,0.72,143.86,143.84,6.97910081]
[1763604854617,7.67156575,143.86,143.84,6.97910081]
[1763604855110,0.72,143.86,143.85,6.97910081]
[1763604855602,8.80216882,143.87,143.85,6.97910081]
[1763604855816,1.86,143.86,143.85,18.12096]
[1763604856102,1.86,143.86,143.85,25.10006081]
[1763604856285,1.86,143.86,143.85,18.12096]
[1763604856486,1.86,143.86,143.85,25.10006081]
[1763604856688,1.44275694,143.86,143.85,25.10006081]
[1763604856887,1.95413541,143.86,143.85,25.10006081]
[1763604857100,8.90533796,143.86,143.83,68.12096]
[1763604857405,8.90533796,143.86,143.85,6.97910081]
[1763604858190,8.18533796,143.86,143.85,6.97910081]
[1763604858678,1.23413541,143.86,143.85,6.97910081]
[1763604859686,1.23413541,143.86,143.84,6.97910081]
[1763604860091,8.18541649,143.86,143.83,118.12096]
[1763604860386,0.66,143.85,143.83,75.10006081]
[1763604861196,7.6118027,143.85,143.83,25.10006081]
[1763604861716,0.4513509,143.85,143.83,25.10006081]
[1763604862315,7.40311159,143.85,143.83,25.10006081]
[1763604863215,6.95176069,143.85,143.83,18.12096]
[1763604863600,7.63910081,143.84,143.77,17.3764399]
[1763604863798,8.83910081,143.83,143.77,6.97910081]
[1763604864004,6.97910081,143.82,143.76,50.0]
[1763604864310,6.97910081,143.81,143.76,50.0]
[1763604864610,6.97910081,143.81,143.73,56.95709344]
[1763604864611,8.83910081,143.8,143.73,56.95709344]
[1763604864812,24.34613244,143.76,143.69,100.0]
[1763604865111,24.34613244,143.76,143.72,6.97910081]
[1763604865112,1.86,143.75,143.72,6.97910081]
[1763604865289,2.52,143.75,143.72,6.97910081]
[1763604865489,0.66,143.74,143.71,6.97910081]
[1763604865698,0.66,143.74,143.7,18.12096]
[1763604865937,0.66,143.74,143.72,6.97910081]
[1763604866620,0.66,143.74,143.69,100.0]
[1763604866798,0.66,143.74,143.7,6.97910081]
[1763604867005,6.95748973,143.73,143.69,50.0]
[1763604867209,1.86,143.72,143.68,6.97910081]
[1763604867415,9.53910081,143.72,143.66,6.97910081]
[1763604867623,0.7,143.71,143.68,6.97910081]
[1763604867806,2.56,143.71,143.68,6.97910081]
[1763604868119,16.7,143.77,143.74,50.0]
[1763604868299,16.7,143.77,143.75,6.97910081]
[1763604868617,1.86,143.76,143.74,50.0]
[1763604868824,2.56,143.76,143.72,68.12096]
[1763604869128,0.7,143.75,143.71,25.10006081]
[1763604869425,1.86,143.74,143.73,6.97910081]
[1763604870402,1.86,143.74,143.72,56.97910081]
[1763604870623,2.56,143.74,143.72,6.97910081]
[1763604871119,9.51726533,143.74,143.72,6.97910081]
[1763604872023,9.51726533,143.74,143.71,25.10006081]
[1763604872227,7.65759228,143.73,143.71,25.10006081]
[1763604872405,7.65759228,143.73,143.72,18.12096]
[1763604872611,6.95759228,143.73,143.72,18.12096]
[1763604873226,7.65759228,143.73,143.7,18.12096]
[1763604873406,0.7,143.72,143.71,18.12096]
[1763604873808,0.7,143.72,143.71,9.78882769]
[1763604874103,0.7,143.72,143.7,9.78882769]
[1763604874104,6.958458,143.71,143.7,9.78882769]
[1763604874308,8.818458,143.71,143.7,9.78882769]
[1763604874515,9.518458,143.71,143.7,9.78882769]
[1763604875103,26.91460301,143.71,143.68,9.78882769]
[1763604875311,0.7,143.7,143.68,9.78882769]
[1763604876025,0.49111908,143.7,143.68,9.78882769]
[1763604876228,26.21460301,143.71,143.68,9.78882769]
[1763604877828,0.7,143.7,143.68,9.78882769]
[1763604878214,6.95942654,143.69,143.68,9.78882769]
[1763604878717,7.65942654,143.69,143.68,9.78882769]
[1763604880128,25.05799289,143.69,143.67,9.78882769]
[1763604880322,25.05799289,143.69,143.65,0.2]
[1763604880323,2.56,143.68,143.65,0.2]
[1763604880526,0.7,143.68,143.67,9.78882769]
[1763604880828,1.86,143.68,143.67,16.7679285]
[1763604881614,1.65111389,143.68,143.67,16.7679285]
[1763604882410,0.52,143.67,143.63,6.97910081]
[1763604882628,0.52,143.67,143.63,25.10006081]
[1763604883531,13.93869609,143.69,143.64,0.69]
[1763604883735,6.96039535,143.67,143.64,0.69]
[1763604884336,1.86,143.66,143.65,9.78882769]
[1763604886811,8.82087985,143.66,143.65,9.78882769]
[1763604887012,0.52,143.74,143.67,77.90978769]
[1763604887318,4.07576106,143.72,143.67,77.90978769]
[1763604887615,4.07576106,143.72,143.69,50.0]
[1763604887829,11.03402145,143.72,143.69,50.0]
[1763604888021,11.03402145,143.72,143.69,50.69]
[1763604888736,11.03402145,143.72,143.69,50.0]
[1763604888913,11.03402145,143.72,143.67,68.81096]
[1763604888914,11.03402145,143.72,143.67,118.81096]
[1763604889116,11.03402145,143.72,143.68,0.69]
[1763604889643,6.95826039,143.72,143.68,0.69]
[1763604889818,11.03402145,143.72,143.68,0.69]
[1763604890224,28.42895604,143.72,143.68,0.69]
[1763604890725,24.35319498,143.72,143.68,0.69]